fUSD/lending_fUSD_20240419
["ID","MTS","AMOUNT","RATE_DAILY","PERIOD"]
[322942884,1713535905576,-500.0,0.00016042,2]
[322942885,1713535905585,-904.97,0.00016042,2]
[322942886,1713535905594,-2315.56,0.00016042,2]
[322942887,1713535905604,-500.0,0.00016042,2]
[322942888,1713535905617,-677.88,0.00016042,2]
[322942889,1713535905626,-500.0,0.00016042,2]
[322942890,1713535905636,-702.4,0.00016042,2]
[322942891,1713535905645,-2967.69,0.00016042,2]
[322942892,1713535905655,-2431.35,0.00016042,2]
[322942893,1713535905664,-500.0,0.00016042,2]
[322942894,1713535905673,-842.93,0.00016042,2]
[322942895,1713535905683,-734.35,0.00016042,2]
[322942896,1713535905692,-1043.56,0.00016042,2]
[322942897,1713535905701,-518.03,0.00016042,2]
[322942898,1713535905711,-571.24,0.00016042,2]
[322942899,1713535905720,-1375.06,0.00016042,2]
[322942900,1713535905730,-1971.86,0.00016042,2]
[322942901,1713535905739,-879.74,0.00016042,2]
[322942902,1713535905748,-905.22,0.00016042,2]
[322942903,1713535905757,-1403.58,0.00016042,2]
[322942904,1713535905766,-624.21,0.00016042,2]
[322942905,1713535905776,-500.78,0.00016042,2]
[322942906,1713535905786,-500.0,0.00016042,2]
[322942907,1713535905795,-1456.18,0.00016042,2]
[322942908,1713535905804,-500.0,0.00016042,2]
[322942909,1713535905814,-1562.08,0.00016042,2]
[322942910,1713535905823,-500.0,0.00016042,2]
[322942911,1713535905834,-500.0,0.00016042,2]
[322942912,1713535905844,-500.0,0.00016042,2]
[322942913,1713535905853,-1438.03,0.00016042,2]
[322942914,1713535905863,-617.53,0.00016042,2]
[322942915,1713535905872,-500.0,0.00016042,2]
[322942916,1713535905882,-1280.0,0.00016042,2]
[322942917,1713535905892,-500.0,0.00016042,2]
[322942918,1713535905901,-2332.63,0.00016042,2]
[322942919,1713535905911,-1243.28,0.00016042,2]
[322942920,1713535905920,-500.0,0.00016042,2]
[322942921,1713535905929,-916.98,0.00016042,2]
[322942922,1713535905938,-1511.04,0.00016042,2]
[322942923,1713535905948,-1122.26,0.00016042,2]
[322942924,1713535905957,-500.0,0.00016042,2]
[322942925,1713535905966,-793.25,0.00016042,2]
[322942926,1713535905975,-500.0,0.00016042,2]
[322942927,1713535905984,-500.0,0.00016042,2]
[322942928,1713535905994,-500.0,0.00016042,2]
[322942929,1713535906003,-1019.57,0.00016042,2]
[322942930,1713535906013,-976.14,0.00016042,2]
[322942931,1713535906022,-500.0,0.00016042,2]
[322942932,1713535906031,-1797.55,0.00016042,2]
[322942933,1713535906040,-1076.2,0.00016042,2]
[322942934,1713535906050,-888.98,0.00016042,2]
[322942935,1713535906059,-695.86,0.00016042,2]
[322942936,1713535906069,-500.0,0.00016042,2]
[322942937,1713535906081,-1544.8,0.00016042,2]
[322942938,1713535906090,-2963.01,0.00016042,2]
[322942939,1713535906099,-500.0,0.00016042,2]
[322942940,1713535906109,-1506.35,0.00016042,2]
[322942941,1713535906119,-500.0,0.00016042,2]
[322942942,1713535906128,-587.55,0.00016042,2]
[322942943,1713535906138,-500.0,0.00016042,2]
[322942944,1713535906148,-2843.02,0.00016042,2]
[322942945,1713535906157,-714.86,0.00016042,2]
[322942946,1713535906167,-992.71,0.00016042,2]
[322942947,1713535906177,-1445.66,0.00016042,2]
[322942948,1713535906187,-564.94,0.00016045,2]
[322942949,1713535906198,-599.4,0.00016045,2]
[322942950,1713535906208,-500.0,0.00016045,2]
[322942951,1713535906219,-1897.41,0.00016045,2]
[322942952,1713535906228,-1643.57,0.00016045,2]
[322942953,1713535906238,-2594.88,0.00016045,2]
[322942954,1713535906247,-1186.77,0.00016045,2]
[322942955,1713535906257,-696.31,0.00016045,2]
[322942956,1713535906267,-1117.24,0.00016045,2]
[322942957,1713535906276,-500.0,0.00016045,2]
[322942958,1713535906286,-2214.68,0.00016045,2]
[322942959,1713535906295,-500.0,0.00016045,2]
[322942960,1713535906304,-2103.55,0.00016045,2]
[322942961,1713535906314,-1523.37,0.00016045,2]
[322942962,1713535906324,-500.0,0.00016045,2]
[322942963,1713535906337,-2998.4,0.00016045,2]
[322942964,1713535906347,-509.25,0.00016045,2]
[322942965,1713535906356,-1019.51,0.00016045,2]
[322942966,1713535906366,-835.83,0.00016045,2]
[322942967,1713535906375,-2018.43,0.00016045,2]
[322942968,1713535906385,-1180.09,0.00016045,2]
[322942969,1713535906394,-1128.94,0.00016045,2]
[322942970,1713535906403,-894.03,0.00016045,2]
[322942971,1713535906413,-572.25,0.00016045,2]
[322942972,1713535906422,-2493.72,0.00016045,2]
[322942973,1713535906431,-1804.16,0.00016045,2]
[322942974,1713535906440,-1084.95,0.00016045,2]
[322942975,1713535906450,-1472.14,0.00016045,2]
[322942976,1713535906459,-1951.72,0.00016045,2]
[322942977,1713535906468,-1263.02,0.00016045,2]
[322942978,1713535906478,-883.61,0.00016045,2]
[322942979,1713535906486,-500.0,0.00016045,2]
[322942980,1713535906495,-749.29,0.00016045,2]
[322942981,1713535906505,-500.0,0.00016045,2]
[322942982,1713535906514,-916.85,0.00016045,2]
[322942983,1713535906523,-1467.33,0.00016045,2]
[322942984,1713535906532,-606.29,0.00016045,2]
[322942985,1713535906541,-815.69,0.00016055,2]
[322942986,1713535906550,-1056.970918,0.00016074,2]
[322942987,1713535906559,-3260.258068,0.00016074,2]
[322942988,1713535906568,-1984.872219,0.00016074,2]
[322942989,1713535906578,-42315.318605,0.00016074,2]
[322942990,1713535906587,-13041.032276,0.00016074,2]
[322942991,1713535906598,-1387.253408,0.00016074,2]
[322942992,1713535906611,-1542.254889,0.00016074,2]
[322942993,1713535906621,-7984.31474331,0.00016077,2]
[322942994,1713535906631,-5370.17,0.00016092,2]
[322942995,1713535906640,-7981.14,0.00016092,2]
[322942996,1713535906651,-18824.22,0.00016092,2]
[322942997,1713535906660,-9916.57,0.00016092,2]
[322942998,1713535906669,-12812.3,0.00016092,2]
[322942999,1713535906687,-18600.6,0.00016092,2]
[322943000,1713535906706,-7936.53,0.00016092,2]
[322943001,1713535906723,-6466.93,0.00016092,2]
[322943002,1713535906742,-10549.14,0.00016092,2]
[322943003,1713535906757,-4175.74,0.00016092,2]
[322943004,1713535906774,-1098.4,0.00016092,2]
[322943005,1713535906791,-2521.91,0.00016092,2]
[322943006,1713535906805,-6368.46,0.00016092,2]
[322943007,1713535906825,-6553.48,0.00016092,2]
[322943008,1713535906842,-584.5,0.00016092,2]
[322943009,1713535906859,-3986.6,0.00016092,2]
[322943010,1713535906879,-2327.06,0.00016092,2]
[322943011,1713535906900,-20291.19,0.00016092,2]
[322943012,1713535906912,-78928.58,0.00016092,2]
[322943013,1713535906928,-20409.19,0.00016092,2]
[322943014,1713535906945,-9305.78,0.00016093,2]
[322943015,1713535906959,-53537.44,0.00016093,2]
[322943016,1713535906975,-5244.64,0.00016093,2]
[322943017,1713535906990,-8123.91,0.00016093,2]
[322943018,1713535907005,-976.56,0.00016094,2]
[322943019,1713535907020,-1085.72,0.00016094,2]
[322943020,1713535907035,-1595.91,0.00016094,2]
[322943021,1713535907051,-500.0,0.00016094,2]
[322943022,1713535907067,-548.92,0.00016094,2]
[322943023,1713535907084,-500.0,0.00016094,2]
[322943024,1713535907100,-500.0,0.00016094,2]
[322943025,1713535907116,-1733.8,0.00016094,2]
[322943026,1713535907132,-704.82,0.00016094,2]
[322943027,1713535907149,-523.19,0.00016094,2]
[322943028,1713535907164,-912.79,0.00016094,2]
[322943029,1713535907179,-500.0,0.00016094,2]
[322943030,1713535907193,-500.0,0.00016094,2]
[322943031,1713535907208,-500.0,0.00016094,2]
[322943032,1713535907223,-500.0,0.00016094,2]
[322943033,1713535907238,-658.18,0.00016094,2]
[322943034,1713535907253,-500.0,0.00016094,2]
[322943035,1713535907268,-2758.33,0.00016094,2]
[322943036,1713535907283,-1541.04,0.00016094,2]
[322943037,1713535907297,-638.15,0.00016094,2]
[322943038,1713535907311,-1489.48,0.00016094,2]
[322943039,1713535907326,-1000.28,0.00016094,2]
[322943040,1713535907342,-1125.26,0.00016094,2]
[322943041,1713535907355,-500.0,0.00016094,2]
[322943042,1713535907371,-500.0,0.00016094,2]
[322943043,1713535907386,-500.0,0.00016094,2]
[322943044,1713535907400,-500.0,0.00016094,2]
[322943045,1713535907415,-792.31,0.00016094,2]
[322943046,1713535907430,-500.0,0.00016094,2]
[322943047,1713535907445,-500.0,0.00016094,2]
[322943048,1713535907459,-767.04,0.00016094,2]
[322943049,1713535907473,-2722.96,0.00016094,2]
[322943050,1713535907487,-500.0,0.00016094,2]
[322943051,1713535907501,-644.26,0.00016094,2]
[322943052,1713535907516,-634.32,0.00016094,2]
[322943053,1713535907532,-839.12,0.00016094,2]
[322943054,1713535907546,-1210.63,0.00016094,2]
[322943055,1713535907562,-1583.39,0.00016094,2]
[322943056,1713535907577,-1160.87,0.00016094,2]
[322943057,1713535907592,-761.24,0.00016094,2]
[322943058,1713535907609,-500.0,0.00016094,2]
[322943059,1713535907627,-1970.76,0.00016094,2]
[322943060,1713535907643,-562.02,0.00016094,2]
[322943061,1713535907660,-500.0,0.00016094,2]
[322943062,1713535907675,-500.0,0.00016094,2]
[322943063,1713535907690,-2158.3,0.00016094,2]
[322943064,1713535907705,-1279.73,0.00016094,2]
[322943065,1713535907720,-1932.36,0.00016094,2]
[322943066,1713535907735,-500.0,0.00016094,2]
[322943067,1713535907749,-997.52,0.00016094,2]
[322943068,1713535907764,-782.17,0.00016094,2]
[322943069,1713535907780,-641.76512491,0.00016094,2]
[322943070,1713535907795,-500.0,0.00016094,2]
[322943071,1713535907810,-500.0,0.00016094,2]
[322943072,1713535907826,-508.83,0.00016094,2]
[322943073,1713535907842,-1362.32,0.00016094,2]
[322943074,1713535907857,-2409.76,0.00016094,2]
[322943075,1713535907871,-500.0,0.00016094,2]
[322943076,1713535907886,-733.82,0.00016094,2]
[322943077,1713535907902,-500.0,0.00016094,2]
[322943078,1713535907917,-919.91,0.00016094,2]
[322943079,1713535907931,-500.0,0.00016094,2]
[322943080,1713535907946,-1149.42,0.00016094,2]
[322943081,1713535907962,-500.0,0.00016094,2]
[322943082,1713535907977,-500.0,0.00016094,2]
[322943083,1713535908000,-587.35,0.00016094,2]
[322943084,1713535908014,-2223.17,0.00016094,2]
[322943085,1713535908029,-1543.23,0.00016094,2]
[322943086,1713535908043,-1155.12,0.00016094,2]
[322943087,1713535908057,-828.07,0.00016094,2]
[322943088,1713535908072,-500.0,0.00016094,2]
[322943089,1713535908088,-647.16,0.00016094,2]
[322943090,1713535908101,-500.0,0.00016094,2]
[322943091,1713535908117,-500.0,0.00016094,2]
[322943092,1713535908132,-653.49,0.00016094,2]
[322943093,1713535908146,-327.61873824,0.00016094,2]
[322943094,1713535908161,-1476.88,0.00016094,2]
[322943095,1713535908175,-1436.32,0.00016094,2]
[322943096,1713535908190,-921.54,0.00016094,2]
[322943097,1713535908205,-500.0,0.00016094,2]
[322943098,1713535908220,-831.97,0.00016094,2]
[322943099,1713535908235,-500.0,0.00016094,2]
[322943100,1713535908249,-196.49072581,0.00016094,2]
[322943101,1713535908264,-500.0,0.00016094,2]
[322943102,1713535908278,-500.0,0.00016094,2]
[322943103,1713535908292,-500.0,0.00016094,2]
[322943104,1713535908307,-936.87,0.00016094,2]
[322943105,1713535908321,-543.04,0.00016094,2]
[322943106,1713535908337,-500.0,0.00016094,2]
[322943107,1713535908351,-500.0,0.00016094,2]
[322943108,1713535908365,-621.53277471,0.00016094,2]
[322943109,1713535908380,-1453.48,0.00016094,2]
[322943110,1713535908394,-500.0,0.00016094,2]
[322943111,1713535908408,-500.0,0.00016094,2]
[322943112,1713535908423,-500.0,0.00016094,2]
[322943113,1713535908438,-500.0,0.00016094,2]
[322943114,1713535908452,-1473.7,0.00016094,2]
[322943115,1713535908467,-500.0,0.00016094,2]
[322943116,1713535908482,-1154.08,0.00016094,2]
[322943117,1713535908496,-500.0,0.00016094,2]
[322943118,1713535908510,-905.53,0.00016094,2]
[322943119,1713535908525,-500.0,0.00016094,2]
[322943120,1713535908540,-2205.17,0.00016094,2]
[322943121,1713535908557,-526.01,0.00016094,2]
[322943122,1713535908570,-500.0,0.00016094,2]
[322943123,1713535908585,-1072.35,0.00016094,2]
[322943124,1713535908600,-1154.09,0.00016094,2]
[322943125,1713535908615,-500.0,0.00016094,2]
[322943126,1713535908629,-500.0,0.00016094,2]
[322943127,1713535908643,-500.0,0.00016094,2]
[322943128,1713535908659,-966.42,0.00016094,2]
[322943129,1713535908672,-626.82,0.00016094,2]
[322943130,1713535908687,-500.0,0.00016094,2]
[322943131,1713535908703,-2432.17,0.00016094,2]
[322943132,1713535908717,-839.85,0.00016094,2]
[322943133,1713535908731,-500.0,0.00016094,2]
[322943134,1713535908745,-500.0,0.00016094,2]
[322943135,1713535908759,-500.0,0.00016094,2]
[322943136,1713535908773,-922.92,0.00016094,2]
[322943137,1713535908788,-500.0,0.00016094,2]
[322943138,1713535908802,-197.80557556,0.00016094,2]
[322943139,1713535908816,-500.0,0.00016094,2]
[322943140,1713535908831,-500.0,0.00016094,2]
[322943141,1713535908845,-500.0,0.00016094,2]
[322943142,1713535908859,-1553.21,0.00016094,2]
[322943143,1713535908874,-500.0,0.00016094,2]
[322943144,1713535908889,-1979.16,0.00016094,2]
[322943145,1713535908903,-592.35,0.00016094,2]
[322943146,1713535908917,-1369.12,0.00016094,2]
[322943147,1713535908931,-985.05,0.00016094,2]
[322943148,1713535908945,-500.0,0.00016094,2]
[322943149,1713535908960,-500.0,0.00016094,2]
[322943150,1713535908975,-500.0,0.00016094,2]
[322943151,1713535908990,-598.63,0.00016094,2]
[322943152,1713535909003,-1335.68,0.00016094,2]
[322943153,1713535909019,-695.61,0.00016094,2]
[322943154,1713535909033,-536.82,0.00016094,2]
[322943155,1713535909047,-783.18,0.00016094,2]
[322943156,1713535909061,-907.43,0.00016094,2]
[322943157,1713535909075,-500.0,0.00016094,2]
[322943158,1713535909095,-500.0,0.00016094,2]
[322943159,1713535909111,-500.0,0.00016094,2]
[322943160,1713535909125,-500.0,0.00016094,2]
[322943161,1713535909138,-500.0,0.00016094,2]
[322943162,1713535909152,-585.01,0.00016094,2]
[322943163,1713535909166,-500.0,0.00016094,2]
[322943164,1713535909180,-500.0,0.00016094,2]
[322943165,1713535909194,-500.0,0.00016094,2]
[322943166,1713535909207,-3244.27,0.00016094,2]
[322943167,1713535909222,-745.83,0.00016094,2]
[322943168,1713535909236,-1393.81,0.00016094,2]
[322943169,1713535909249,-500.0,0.00016094,2]
[322943170,1713535909588,-500.0,0.00016094,2]
[322943171,1713535909609,-500.0,0.00016094,2]
[322943172,1713535909621,-736.59,0.00016094,2]
[322943173,1713535909630,-500.0,0.00016094,2]
[322943174,1713535909640,-1155.97,0.00016094,2]
[322943175,1713535909649,-500.0,0.00016094,2]
[322943176,1713535909658,-1455.9,0.00016094,2]
[322943177,1713535909667,-931.35,0.00016094,2]
[322943178,1713535909676,-500.0,0.00016094,2]
[322943179,1713535909686,-500.0,0.00016094,2]
[322943180,1713535909695,-500.0,0.00016094,2]
[322943181,1713535909706,-814.74,0.00016094,2]
[322943182,1713535909715,-944.41,0.00016094,2]
[322943183,1713535909724,-500.0,0.00016094,2]
[322943184,1713535909734,-650.39,0.00016094,2]
[322943185,1713535909745,-1405.86,0.00016094,2]
[322943186,1713535909754,-500.0,0.00016094,2]
[322943187,1713535909763,-1529.93,0.00016094,2]
[322943188,1713535909773,-500.0,0.00016094,2]
[322943189,1713535909783,-500.0,0.00016094,2]
[322943190,1713535909792,-500.0,0.00016094,2]
[322943191,1713535909801,-1810.02,0.00016094,2]
[322943192,1713535909810,-765.3,0.00016094,2]
[322943193,1713535909819,-2885.93,0.00016094,2]
[322943194,1713535909832,-988.91,0.00016094,2]
[322943195,1713535909841,-1094.15,0.00016094,2]
[322943196,1713535909851,-2263.75,0.00016094,2]
[322943197,1713535909861,-500.0,0.00016094,2]
[322943198,1713535909872,-500.0,0.00016094,2]
[322943199,1713535909881,-500.0,0.00016094,2]
[322943200,1713535909890,-500.0,0.00016094,2]
[322943201,1713535909900,-500.0,0.00016094,2]
[322943202,1713535909911,-937.08,0.00016094,2]
[322943203,1713535909921,-500.0,0.00016094,2]
[322943204,1713535909931,-500.0,0.00016094,2]
[322943205,1713535909940,-524.6,0.00016094,2]
[322943206,1713535909950,-2850.78,0.00016094,2]
[322943207,1713535909960,-1250.61,0.00016094,2]
[322943208,1713535909969,-765.0,0.00016094,2]
[322943209,1713535909978,-516.91,0.00016094,2]
[322943210,1713535909987,-500.0,0.00016094,2]
[322943211,1713535909996,-1174.28,0.00016094,2]
[322943212,1713535910005,-1050.54,0.00016094,2]
[322943213,1713535910014,-500.0,0.00016094,2]
[322943214,1713535910023,-2154.19,0.00016094,2]
[322943215,1713535910033,-500.0,0.00016094,2]
[322943216,1713535910042,-1168.31,0.00016094,2]
[322943217,1713535910051,-1313.14,0.00016094,2]
[322943218,1713535910060,-500.0,0.00016094,2]
[322943219,1713535910069,-1806.46,0.00016094,2]
[322943220,1713535910081,-500.0,0.00016094,2]
[322943221,1713535910090,-500.0,0.00016094,2]
[322943222,1713535910100,-773.55,0.00016094,2]
[322943223,1713535910109,-500.0,0.00016094,2]
[322943224,1713535910118,-908.87,0.00016094,2]
[322943225,1713535910127,-1232.96,0.00016094,2]
[322943226,1713535910136,-2552.13,0.00016094,2]
[322943227,1713535910146,-1067.76,0.00016094,2]
[322943228,1713535910155,-500.0,0.00016094,2]
[322943229,1713535910164,-500.0,0.00016094,2]
[322943230,1713535910173,-500.0,0.00016094,2]
[322943231,1713535910183,-500.0,0.00016094,2]
[322943232,1713535910192,-976.02,0.00016094,2]
[322943233,1713535910201,-500.0,0.00016094,2]
[322943234,1713535910211,-500.61,0.00016094,2]
[322943235,1713535910220,-1081.44,0.00016094,2]
[322943236,1713535910229,-595.69,0.00016094,2]
[322943237,1713535910238,-531.86,0.00016094,2]
[322943238,1713535910247,-1026.51,0.00016094,2]
[322943239,1713535910257,-500.0,0.00016094,2]
[322943240,1713535910266,-1415.13,0.00016094,2]
[322943241,1713535910275,-500.0,0.00016094,2]
[322943242,1713535910284,-500.0,0.00016094,2]
[322943243,1713535910294,-500.0,0.00016094,2]
[322943244,1713535910303,-1097.06,0.00016094,2]
[322943245,1713535910312,-827.65,0.00016094,2]
[322943246,1713535910322,-500.0,0.00016094,2]
[322943247,1713535910332,-512.9,0.00016094,2]
[322943248,1713535910345,-1727.14,0.00016094,2]
[322943249,1713535910354,-2285.14,0.00016094,2]
[322943250,1713535910364,-574.2212737,0.00016094,2]
[322943251,1713535910373,-766.84,0.00016094,2]
[322943252,1713535910383,-841.6,0.00016094,2]
[322943253,1713535910392,-568.31,0.00016094,2]
[322943254,1713535910401,-500.0,0.00016094,2]
[322943255,1713535910410,-1292.8,0.00016094,2]
[322943256,1713535910420,-500.0,0.00016094,2]
[322943257,1713535910429,-483.78562897,0.00016094,2]
[322943258,1713535910438,-1143.03,0.00016094,2]
[322943259,1713535910447,-1941.29,0.00016094,2]
[322943260,1713535910457,-1479.43,0.00016094,2]
[322943261,1713535910466,-500.0,0.00016094,2]
[322943262,1713535910475,-577.24,0.00016094,2]
[322943263,1713535910487,-1941.82,0.00016094,2]
[322943264,1713535910496,-500.0,0.00016094,2]
[322943265,1713535910505,-500.0,0.00016094,2]
[322943266,1713535910515,-1405.98,0.00016094,2]
[322943267,1713535910525,-852.62,0.00016094,2]
[322943268,1713535910534,-500.0,0.00016094,2]
[322943269,1713535910544,-500.0,0.00016094,2]
[322943270,1713535910553,-291.85,0.00016094,2]
[322943271,1713535910563,-500.0,0.00016094,2]
[322943272,1713535910573,-598.56,0.00016094,2]
[322943273,1713535910585,-806.19,0.00016094,2]
[322943274,1713535910594,-500.0,0.00016094,2]
[322943275,1713535910604,-2706.55,0.00016094,2]
[322943276,1713535910616,-500.0,0.00016094,2]
[322943277,1713535910626,-698.6,0.00016094,2]
[322943278,1713535910635,-500.0,0.00016094,2]
[322943279,1713535910646,-1458.1,0.00016094,2]
[322943280,1713535910655,-500.0,0.00016094,2]
[322943281,1713535910665,-500.0,0.00016094,2]
[322943282,1713535910675,-1248.98,0.00016094,2]
[322943283,1713535910684,-500.0,0.00016094,2]
[322943284,1713535910696,-1033.18,0.00016094,2]
[322943285,1713535910707,-500.0,0.00016094,2]
[322943286,1713535910717,-2305.13,0.00016094,2]
[322943287,1713535910727,-638.82,0.00016094,2]
[322943288,1713535910737,-500.0,0.00016094,2]
[322943289,1713535910747,-500.0,0.00016094,2]
[322943290,1713535910757,-2011.14,0.00016094,2]
[322943291,1713535910767,-500.0,0.00016094,2]
[322943292,1713535910777,-500.0,0.00016094,2]
[322943293,1713535910786,-500.0,0.00016094,2]
[322943294,1713535910796,-1960.57,0.00016094,2]
[322943295,1713535910806,-601.48,0.00016094,2]
[322943296,1713535910816,-500.0,0.00016094,2]
[322943297,1713535910826,-1858.15,0.00016094,2]
[322943298,1713535910838,-500.0,0.00016094,2]
[322943299,1713535910848,-658.72,0.00016094,2]
[322943300,1713535910857,-500.0,0.00016094,2]
[322943301,1713535910867,-500.0,0.00016094,2]
[322943302,1713535910876,-500.0,0.00016094,2]
[322943303,1713535910886,-1281.13,0.00016094,2]
[322943304,1713535910896,-1472.8,0.00016094,2]
[322943305,1713535910905,-500.0,0.00016094,2]
[322943306,1713535910914,-500.0,0.00016094,2]
[322943307,1713535910923,-719.07,0.00016094,2]
[322943308,1713535910933,-500.0,0.00016094,2]
[322943309,1713535910943,-1672.02,0.00016094,2]
[322943310,1713535910953,-866.38,0.00016094,2]
[322943311,1713535910963,-2306.99,0.00016094,2]
[322943312,1713535910972,-1013.57,0.00016094,2]
[322943313,1713535910981,-500.0,0.00016094,2]
[322943314,1713535910991,-1186.87,0.00016094,2]
[322943315,1713535911000,-1832.01,0.00016094,2]
[322943316,1713535911009,-774.6,0.00016094,2]
[322943317,1713535911019,-500.0,0.00016094,2]
[322943318,1713535911029,-500.0,0.00016094,2]
[322943319,1713535911038,-500.0,0.00016094,2]
[322943320,1713535911047,-916.09,0.00016094,2]
[322943321,1713535911056,-500.0,0.00016094,2]
[322943322,1713535911066,-1477.7,0.00016094,2]
[322943323,1713535911075,-583.73,0.00016094,2]
[322943324,1713535911086,-500.0,0.00016095,2]
[322943325,1713535911095,-543.35723285,0.00016095,2]
[322943326,1713535911104,-474.92048141,0.00016095,2]
[322943327,1713535911113,-500.0,0.00016095,2]
[322943328,1713535911123,-500.0,0.00016095,2]
[322943329,1713535911133,-500.0,0.00016095,2]
[322943330,1713535911143,-500.0,0.00016095,2]
[322943331,1713535911153,-500.0,0.00016095,2]
[322943332,1713535911162,-500.0,0.00016095,2]
[322943333,1713535911172,-500.0,0.00016095,2]
[322943334,1713535911181,-500.0,0.00016095,2]
[322943335,1713535911191,-500.0,0.00016095,2]
[322943336,1713535911201,-500.0,0.00016095,2]
[322943337,1713535911210,-500.0,0.00016095,2]
[322943338,1713535911220,-500.0,0.00016095,2]
[322943339,1713535911230,-500.0,0.00016095,2]
[322943340,1713535911239,-500.0,0.00016095,2]
[322943341,1713535911248,-500.0,0.00016095,2]
[322943342,1713535911258,-500.0,0.00016095,2]
[322943343,1713535911267,-500.0,0.00016095,2]
[322943344,1713535911277,-500.0,0.00016095,2]
[322943345,1713535911286,-500.0,0.00016095,2]
[322943346,1713535911296,-500.0,0.00016095,2]
[322943347,1713535911306,-500.0,0.00016095,2]
[322943348,1713535911315,-500.0,0.00016095,2]
[322943349,1713535911326,-500.0,0.00016095,2]
[322943350,1713535911336,-500.0,0.00016095,2]
[322943351,1713535911346,-500.0,0.00016095,2]
[322943352,1713535911355,-500.0,0.00016095,2]
[322943353,1713535911365,-500.0,0.00016095,2]
[322943354,1713535911374,-500.0,0.00016095,2]
[322943355,1713535911383,-500.0,0.00016095,2]
[322943356,1713535911393,-500.0,0.00016095,2]
[322943357,1713535911402,-500.0,0.00016095,2]
[322943358,1713535911411,-500.0,0.00016095,2]
[322943359,1713535911420,-500.0,0.00016095,2]
[322943360,1713535911429,-500.0,0.00016095,2]
[322943361,1713535911439,-500.0,0.00016095,2]
[322943362,1713535911448,-500.0,0.00016095,2]
[322943363,1713535911457,-500.0,0.00016095,2]
[322943364,1713535911467,-500.0,0.00016095,2]
[322943365,1713535911476,-500.0,0.00016095,2]
[322943366,1713535911486,-500.0,0.00016095,2]
[322943367,1713535911496,-500.0,0.00016095,2]
[322943368,1713535911505,-500.0,0.00016095,2]
[322943369,1713535911515,-500.0,0.00016095,2]
[322943370,1713535911524,-500.0,0.00016095,2]
[322943371,1713535911534,-500.0,0.00016095,2]
[322943372,1713535911543,-500.0,0.00016095,2]
[322943373,1713535911553,-500.0,0.00016095,2]
[322943374,1713535911563,-500.0,0.00016095,2]
[322943375,1713535911573,-550.55285345,0.00016095,2]
[322943376,1713535911583,-282.94327634,0.00016095,2]
[322943377,1713535911592,-500.0,0.00016095,2]
[322943378,1713535911601,-500.0,0.00016095,2]
[322943379,1713535911614,-594.85,0.00016095,2]
[322943380,1713535911623,-2683.22,0.00016095,2]
[322943381,1713535911633,-1223.92,0.00016095,2]
[322943382,1713535911643,-3769.27,0.00016095,2]
[322943383,1713535911654,-192.61864357,0.00016095,2]